[Event "Reykjavik Open 2024"]
[Site "Reykjavik"]
[Date "2024.03.19"]
[Round "7.16"]
[White "Karsten, Jan"]
[Black "Zhu, Jiner"]
[Result "0-1"]
[ECO "A14"]
[WhiteElo "2323"]
[BlackElo "2467"]
[Annotator "TA"]
[PlyCount "54"]
[EventDate "2024.03.12"]
[EventCountry "ISL"]
[SourceTitle "playchess.com"]
[Source "ChessBase"]
[SourceQuality "1"]
[TimeControl "40/5400+30:1800+30"]

{[%evp 12,54,11,4,12,14,7,0,4,11,17,12,4,8,14,0,8,-122,-120,-98,-98,-260,-250,-298,-312,-306,-312,-345,-336,-302,-291,-347,-289,-636,-481,-502,-483,-718,-726,-689,-625,-658,-612,-610,-606]} 1. c4 {[%emt 0:01:13]} Nf6 {[%emt 0:00:18]} 2. g3 {[%emt 0:00:07]} e6 {[%emt 0:02:16]} 3. Bg2 {[%emt 0:00:07]} d5 {[%emt 0:00:04]} 4. Nf3 {[%emt 0:00:06]} Be7 {[%emt 0:00:10]} 5. O-O {[%emt 0:00:07]} O-O {[%emt 0:00:04]} 6. b3 {[%emt 0:00:11]} d4 {[%emt 0:01:07]} 7. e3 {[%emt 0:00:10]} c5 {[%emt 0:00:05]} 8. Ne5 {[%emt 0:00:07] Dodges Nc6} Qc7 {[%emt 0:02:25]} 9. f4 {[%emt 0:01:50]} Nfd7 {[%emt 0:00:10] The position is equal.} 10. exd4 {[%emt 0:07:34]} cxd4 {[%emt 0:00:10]} 11. Nd3 {[%emt 0:00:57]} Nc6 {[%emt 0:01:16]} 12. Ba3 {[%emt 0:05:40] [#] Black must now prevent Bxc6.} Qd8 {[%emt 0:00:13]} 13. Qc1 {[%emt 0:03:53]} a5 {[%emt 0:00:08]} 14. c5 {[%emt 0:25:36]} (14. Bxe7 $11 Qxe7 15. Na3) 14... e5 $17 {[%emt 0:15:10]} 15. Bb2 {[%emt 0:10:53]} Nb4 {[%emt 0:14:56]} 16. Nxb4 {[%emt 0:08:30] Now White is beyond hope.} (16. Nxe5 $17 Nxc5 17. Qc4) 16... axb4 $19 {[%emt 0:00:07]} 17. fxe5 {[%emt 0:09:22]} Nxc5 {[%emt 0:00:56]} (17... Bxc5 18. e6 fxe6 19. a3 $17) (17... Nxe5 18. a3 Nd3 19. Qc2 Nxb2 (19... Nxc5 $2 20. axb4 Rxa1 21. Bxa1 $17) 20. Qxb2 Bxc5 21. Kh1 $19) 18. Qc2 {[%emt 0:03:14]} d3 {[%emt 0:07:11]} 19. Qc4 {[%emt 0:02:39]} Be6 {[%emt 0:00:07]} 20. Qf4 {[%emt 0:00:13]} Qd7 {[%emt 0:02:36]} 21. Rc1 {[%emt 0:00:44]} Ra5 {[%emt 0:01:06] Strongly threatening ...Rfa8.} 22. Bd4 $2 {[%emt 0:05:03]} (22. Qd4) 22... Rd8 {[%emt 0:00:50] Black is clearly winning.} 23. Bb2 {[%emt 0:02:42]} Rda8 {[%emt 0:00:20]} 24. Qxb4 {[%emt 0:01:00] [#]} (24. Re1 $142) 24... Nxb3 $1 {[%emt 0:00:22][%cal Bc5b3,Bb3c1,Bc1e2][%mdl 544]} 25. Qxb7 {[%emt 0:00:24]} Qxb7 {[%emt 0:00:05]} (25... Rxa2 26. Qxa8+ Rxa8 27. Rxa8+ Bf8 28. Ba3 $18) 26. Bxb7 {[%emt 0:00:07]} Nxc1 {[%emt 0:00:04]} 27. Bxa8 {[%emt 0:00:42]} Ne2+ {[%emt 0:00:12] Weighted Error Value: White=0.63/Black=0.16 (very precise) .  Loses game:     	White=1     	---        Mistake:       	White=3     	---        OK:         	White=7     	Black=7      Best:        	---       	Black=1} (27... Rxa2 28. Rxa2 Nxa2 29. Bf3 $15) ({Weaker is} 27... Nxa2 28. Be4 $17) 0-1

[Event "Reykjavik Open 2024"]
[Site "Reykjavik"]
[Date "2024.03.19"]
[Round "7.17"]
[White "Mardell, Jimmy"]
[Black "Hjartarson, Johann"]
[Result "0-1"]
[ECO "E46"]
[WhiteElo "2172"]
[BlackElo "2460"]
[Annotator "TA"]
[PlyCount "62"]
[EventDate "2024.03.12"]
[EventCountry "ISL"]
[SourceTitle "playchess.com"]
[Source "ChessBase"]
[SourceQuality "1"]
[TimeControl "40/5400+30:1800+30"]

{[%evp 19,62,-8,0,0,-6,-14,0,11,0,26,39,44,43,39,35,31,45,40,49,0,0,0,2,1,4,-29,0,0,0,-33,-50,-244,-231,-514,-527,-614,-578,-761,-735,-756,-707,-1173,-1118,-1182,-1149]} 1. d4 {[%emt 0:00:04]} Nf6 {[%emt 0:03:01]} 2. c4 {[%emt 0:00:07]} e6 {[%emt 0:00:13]} 3. Nc3 {[%emt 0:00:19]} Bb4 {[%emt 0:00:10]} 4. e3 {[%emt 0:00:08]} O-O {[%emt 0:01:15]} 5. Nge2 {[%emt 0:00:15]} d5 {[%emt 0:00:45]} 6. a3 {[%emt 0:00:28]} Be7 {[%emt 0:00:58]} 7. cxd5 {[%emt 0:00:50]} exd5 {[%emt 0:00:10]} 8. Nf4 {[%emt 0:01:28]} c6 {[%emt 0:00:26]} 9. Bd3 {[%emt 0:01:08]} Re8 {[%emt 0:01:03]} 10. O-O {[%emt 0:00:23]} Nbd7 {[%emt 0:00:34]} 11. f3 {[%emt 0:02:45]} Nf8 {[%emt 0:00:21]} 12. Bc2 {[%emt 0:01:44]} Ne6 {[%emt 0:15:40]} 13. Nxe6 {[%emt 0:06:18] Die Stellung ist ausgeglichen.} Bxe6 {[%emt 0:00:10]} 14. e4 {[%emt 0:00:08][%cal Be3e4,Be4e5][%mdl 32]} g6 {[%emt 0:17:16]} 15. e5 {[%emt 0:08:58]} Nh5 {[%emt 0:00:27]} 16. g4 {[%emt 0:08:21][%cal Bg2g4,Bg4g5][%mdl 32]} Ng7 {[%emt 0:00:18]} 17. f4 {[%emt 0:00:05] [#] Und f5 würde nun gewinnen.} f5 {[%emt 0:00:23]} 18. g5 {[%emt 0:06:06]} Kf7 {[%emt 0:01:11]} 19. Kg2 {[%emt 0:07:58]} (19. Rf3 $14) 19... Rh8 $11 {[%emt 0:01:19]} 20. Rh1 {[%emt 0:01:50]} h6 {[%emt 0:00:28]} 21. h4 {[%emt 0:00:45][%cal Bh2h4,Bh4g5][%mdl 32]} hxg5 {[%emt 0:04:10]} 22. hxg5 {[%emt 0:00:35]} Rxh1 {[%emt 0:00:15]} 23. Qxh1 {[%emt 0:00:10]} Qb6 {[%emt 0:00:19]} 24. Qd1 {[%emt 0:19:20]} Rh8 {[%emt 0:00:32]} 25. b4 {[%emt 0:11:53] Danach ist Weiß chancenlos.} (25. Qd3 $15) 25... Rh4 $19 {[%emt 0:05:45]} 26. Kg3 $2 {[%emt 0:05:51] [#]} (26. Qd3 Qd8 27. Nd1) 26... Bxg5 $1 {[%emt 0:21:20][%mdl 512] Weiss muss nun ...Nh5+ beachten. Schwarz steht klar auf Gewinn.} 27. fxg5 {[%emt 0:03:45]} (27. Ne2 Be7) 27... Rxd4 {[%emt 0:00:24]} 28. Na4 {[%emt 0:00:28]} Rg4+ {[%emt 0:03:25]} 29. Kf3 {[%emt 0:00:10]} Qd8 {[%emt 0:00:07] Und jetzt ...Qh8 wäre schön.} 30. Nc5 {[%emt 0:08:08]} Qh8 {[%emt 0:00:18]} 31. Qf1 {[%emt 0:00:18] Verhindert Qh3+.} Qh2 {[%emt 0:00:47] Gewichteter Fehlerwert: Weiß=0.99/Schwarz=0.03 (makellos) .  Verlustzug:     	Weiß=1     	---        Fehler:       	Weiß=2     	---        Ungenau:       	Weiß=3     	Schwarz=1     OK:         	Weiß=5     	Schwarz=8     Bester:       	Weiß=1     	Schwarz=1     Brilliant:      	---       	Schwarz=1} 0-1

[Event "Reykjavik Open 2024"]
[Site "Reykjavik"]
[Date "2024.03.19"]
[Round "7.18"]
[White "Larkin, Vladyslav"]
[Black "Papadiamandis, Elliot"]
[Result "1/2-1/2"]
[ECO "B20"]
[WhiteElo "2450"]
[BlackElo "2302"]
[Annotator "TA"]
[PlyCount "30"]
[EventDate "2024.03.12"]
[EventCountry "ISL"]
[SourceTitle "playchess.com"]
[Source "ChessBase"]
[SourceQuality "1"]
[TimeControl "40/5400+30:1800+30"]

{[%evp 9,30,27,46,38,35,32,26,47,39,1,1,0,0,0,17,-20,0,0,0,-12,61,-112,-56]} 1. e4 {[%emt 0:00:03]} c5 {[%emt 0:04:08]} 2. Ne2 {[%emt 0:00:26]} d6 {[%emt 0:08:40]} 3. g3 {[%emt 0:00:29]} h5 {[%emt 0:00:31][%cal Bh7h5,Bh5h4][%mdl 32]} 4. h3 {[%emt 0:00:22]} e5 {[%emt 0:02:41]} 5. Bg2 {[%emt 0:00:29]} Ne7 {[%emt 0:03:26]} 6. c3 {[%emt 0:01:30]} h4 {[%emt 0:04:15]} 7. g4 {[%emt 0:02:59]} Ng6 {[%emt 0:08:08]} 8. d4 {[%emt 0:00:18] White has an edge.} Be7 {[%emt 0:00:24]} 9. dxc5 {[%emt 0:00:49]} dxc5 {[%emt 0:00:15]} 10. Qxd8+ {[%emt 0:00:05]} Bxd8 {[%emt 0:03:41]} 11. Na3 {[%emt 0:00:41]} Be6 {[%emt 0:01:15]} 12. Be3 {[%emt 0:09:19]} Bb6 {[%emt 0:02:58]} 13. Nb5 {[%emt 0:27:59]} Ke7 {[%emt 0:04:35] Dodges Nd6} 14. Rd1 {[%emt 0:00:20] Dodges Nd7} Na6 {[%emt 0:18:09]} (14... c4 $11) 15. b3 $2 {[%emt 0:31:44] [#] White is more active.} (15. f4 $1 $14 {is the one way to stay ahead.}) 15... Rhd8 {[%emt 0:07:51] Weighted Error Value: White=0.38/Black=0.22 (precise) .  Mistake:       	White=1     	Black=2      Inaccurate:     	White=2     	---        OK:         	White=2     	Black=2} (15... c4 $1 $17 16. Nc1 (16. Bxb6 $2 axb6 17. b4 Rhd8 $19) 16... Bxe3 17. fxe3 Rhd8) 1/2-1/2

[Event "Reykjavik Open 2024"]
[Site "Reykjavik"]
[Date "2024.03.19"]
[Round "7.20"]
[White "Cornette, Matthieu"]
[Black "Dimitrijeski, Boris"]
[Result "1-0"]
[ECO "D11"]
[WhiteElo "2575"]
[BlackElo "2183"]
[Annotator "TA"]
[PlyCount "99"]
[EventDate "2024.03.12"]
[EventCountry "ISL"]
[SourceTitle "playchess.com"]
[Source "ChessBase"]
[SourceQuality "1"]
[TimeControl "40/5400+30:1800+30"]

{[%evp 9,99,16,7,8,6,16,12,0,27,32,45,58,58,60,68,58,64,20,77,88,84,98,87,74,102,101,83,93,75,50,70,18,63,72,69,71,68,70,66,64,92,97,98,55,67,63,59,47,51,33,25,6,112,125,146,135,132,128,140,135,134,132,132,142,146,140,218,230,184,166,398,367,418,454,517,450,516,513,509,490,428,428,1176,1010,2284,2274,2375,3414,1710,2441,1692,1581]} 1. d4 {[%emt 0:00:03]} d5 {[%emt 0:07:37]} 2. c4 {[%emt 0:00:20]} c6 {[%emt 0:02:16]} 3. Nf3 {[%emt 0:00:59]} Nf6 {[%emt 0:00:04]} 4. g3 {[%emt 0:00:11]} Bf5 {[%emt 0:00:05]} 5. Nc3 {[%emt 0:00:08]} e6 {[%emt 0:00:21]} 6. Nh4 {[%emt 0:00:12]} dxc4 {[%emt 0:02:27]} 7. Nxf5 {[%emt 0:00:15]} exf5 {[%emt 0:00:02]} 8. Bg2 {[%emt 0:00:25] Die Stellung ist ausgeglichen.} Nbd7 {[%emt 0:02:51]} 9. d5 {[%emt 0:03:47]} Nxd5 {[%emt 0:08:28]} 10. Nxd5 {[%emt 0:00:10]} cxd5 {[%emt 0:00:08]} 11. Qxd5 {[%emt 0:00:27][%cal Oe1g1]} Bb4+ {[%emt 0:02:57]} 12. Kf1 {[%emt 0:00:34]} O-O {[%emt 0:03:41]} 13. Bf4 {[%emt 0:07:27]} (13. Qxf5 $5 Re8 14. Bf4 $16 (14. Bxb7 Rb8 $16)) 13... Nb6 {[%emt 0:34:20]} (13... Rc8 $11 {bleibt in der Remisbreite.}) 14. Qxf5 $16 {[%emt 0:05:44] Weiß steht aktiver.} g6 {[%emt 0:12:14]} 15. Qc2 {[%emt 0:11:40]} Qe7 {[%emt 0:00:08]} 16. Bf3 {[%emt 0:02:55]} Rfd8 {[%emt 0:00:38]} 17. Kg2 {[%emt 0:01:20]} Bd6 {[%emt 0:01:19]} 18. Bxd6 {[%emt 0:04:25]} Rxd6 {[%emt 0:00:26]} 19. a4 {[%emt 0:00:05]} a5 {[%emt 0:02:33]} 20. Rhd1 {[%emt 0:02:16]} (20. Qc3 $14) 20... Rad8 {[%emt 0:00:12]} 21. Rxd6 {[%emt 0:00:13]} Qxd6 {[%emt 0:00:16]} 22. Qc3 {[%emt 0:08:00]} Qd2 {[%emt 0:05:34]} 23. Bxb7 {[%emt 0:00:36]} (23. Qe5 {scheint wilder zu sein.} Qb4 24. h4 h5 25. Bxh5 Qd6 26. Qg5) 23... Qxc3 {[%emt 0:02:35]} (23... Qxe2 24. Re1 (24. Qxa5 Qxb2 25. Qe1 Nxa4 $11) (24. Qf6 Rb8 $11) 24... Qd3 25. Qxa5 $18) 24. bxc3 $14 {[%emt 0:00:09][%mdl 4096] Endspiel. KRB-KRN} Rd2 {[%emt 0:00:12][%cal Od2c2]} 25. Bc6 $1 {[%emt 0:02:13][%cal Bb7c6,Bc6b5,Bb5c4][%mdl 32]} Rb2 {[%emt 0:01:12][%cal Og8f8] Verhindert Rb1} 26. Rd1 {[%emt 0:08:15]} Ra2 {[%emt 0:01:13]} 27. Bb5 {[%emt 0:03:30]} Ra3 {[%emt 0:10:03]} 28. Rd6 {[%emt 0:09:02]} Nxa4 {[%emt 0:00:00]} 29. Bxc4 {[%emt 0:00:21] Zielt auf Rd7 ab.} Rxc3 {[%emt 0:00:00]} 30. Bd5 {[%emt 0:02:28]} Nc5 {[%emt 0:00:00] Verhindert Rd7} (30... Rc7 $1 $11) 31. Rf6 $16 {[%emt 0:01:07] Weiß behält die Zügel nun fest in der Hand.} Ne6 {[%emt 0:01:00]} 32. Bxe6 {[%emt 0:00:05]} fxe6 {[%emt 0:00:06]} 33. Rxe6 {[%emt 0:00:03] KR-KR} a4 {[%emt 0:00:10][%cal Ba5a4,Ba4a3,Ba3a2][%mdl 32]} 34. Ra6 {[%emt 0:00:39]} a3 {[%emt 0:00:04]} 35. Ra7 {[%emt 0:16:04]} Rc2 {[%emt 0:01:46]} 36. e3 {[%emt 0:01:06]} (36. Rxa3 $6 Rxe2 37. Kf3 Rb2 $14) 36... a2 {[%emt 0:00:04]} 37. h4 {[%emt 0:00:43]} Kf8 {[%emt 0:00:21] [#]} (37... h5 $16 {war einen Versuch wert.} 38. Kf3 Kf8) 38. g4 $1 $18 {[%emt 0:00:17][%cal Bg3g4,Bg4f5][%mdl 32]} Ke8 {[%emt 0:00:42] [#]} 39. Kg3 $1 {[%emt 0:00:10]} (39. Rxh7 a1=Q (39... a1=B 40. h5 $14) 40. Kf3 Qf6+ 41. Ke4 Rc4+ (41... Qxf2 42. Rb7 Qg2+ 43. Kd3 Qd2+ 44. Ke4 Rc4+ 45. Kf3 Qd5+ 46. Kg3 Qxb7 47. g5 Qe4 48. Kf2 Rc2+ 49. Kg3 Qxe3+ 50. Kg4 Rg2#) (41... Rxf2 42. Kd3 Qf3 43. Ra7 Qd5+ 44. Kc3 Qc5+ 45. Kd3 Qxa7 46. h5 Qd7+ 47. Kc3 Qd1 48. g5 Rc2+ 49. Kb4 Qb1+ 50. Ka5 Ra2#) 42. Kd3 Qc3+ (42... Rxg4 $2 43. f4 $19) 43. Ke2 Qc2+ (43... Rxg4 $2 44. Kf3 $19) 44. Ke1 Rxg4 45. Rh8+ Ke7 46. Rh7+ Kd6) 39... Kd8 $2 {[%emt 0:00:12]} (39... Re2 40. Kf3 (40. Rxh7 $2 {verliert.} a1=Q $19) 40... Rc2) 40. f4 {[%emt 0:00:12]} Kc8 {[%emt 0:01:32]} 41. f5 {[%emt 0:30:52]} gxf5 {[%emt 0:30:14] Weiß steht klar auf Gewinn.} 42. gxf5 {[%emt 0:00:09]} Kb8 {[%emt 0:00:00]} 43. Ra3 {[%emt 0:00:00]} Kc7 {[%emt 0:00:00]} 44. Kf4 {[%emt 0:00:00]} Kd6 {[%emt 0:00:00]} 45. Ra5 {[%emt 0:00:00]} Re2 {[%emt 0:00:00]} (45... h6 $142 46. e4 Kc6) 46. e4 {[%emt 0:00:00]} Rf2+ {[%emt 0:00:00]} 47. Kg5 {[%emt 0:00:00] Droht stark e5+.} Re2 {[%emt 0:00:00] [#]} 48. e5+ $1 {[%emt 0:00:00][%mdl 512]} Rxe5 {[%emt 0:00:00]} 49. Rxa2 {[%emt 0:00:00]} Re4 {[%emt 0:00:00]} 50. h5 {[%emt 0:00:00] Gewichteter Fehlerwert: Weiß=0.07 (makellos) /Schwarz=0.26 (präzise) .  Fehler:       	Weiß=1     	Schwarz=5     Ungenau:       	Weiß=2     	Schwarz=5     OK:         	Weiß=14    	Schwarz=15    Bester:       	Weiß=6     	Schwarz=4     Stark:        	Weiß=2     	---} 1-0

[Event "Reykjavik Open 2024"]
[Site "Reykjavik"]
[Date "2024.03.19"]
[Round "7.21"]
[White "Mai, Alexander Oliver"]
[Black "Klimkowski, Jan"]
[Result "1/2-1/2"]
[ECO "B51"]
[WhiteElo "2160"]
[BlackElo "2532"]
[Annotator "TA"]
[PlyCount "79"]
[EventDate "2024.03.12"]
[EventCountry "ISL"]
[SourceTitle "playchess.com"]
[Source "ChessBase"]
[SourceQuality "1"]
[TimeControl "40/5400+30:1800+30"]

{[%evp 15,79,45,35,39,69,68,67,73,60,72,52,36,49,39,40,42,41,45,63,41,56,47,50,41,46,46,55,53,137,151,187,119,139,-46,115,37,76,38,133,143,138,114,108,117,135,-7,152,154,165,162,164,93,87,0,0,0,0,0,0,0,0,0,0,0,0,0]} 1. e4 {[%emt 0:00:03]} c5 {[%emt 0:00:19]} 2. Nf3 {[%emt 0:00:09]} d6 {[%emt 0:00:03]} 3. Bb5+ {[%emt 0:01:18]} Nd7 {[%emt 0:00:31]} 4. d4 {[%emt 0:00:12]} cxd4 {[%emt 0:00:18]} 5. Qxd4 {[%emt 0:00:09]} a6 {[%emt 0:00:29]} 6. Bxd7+ {[%emt 0:00:09]} Bxd7 {[%emt 0:00:37]} 7. Nc3 {[%emt 0:00:23]} Nf6 {[%emt 0:01:58]} 8. Bg5 {[%emt 0:01:59]} e6 {[%emt 0:13:24]} 9. O-O-O {[%emt 0:11:23] Threatens to win with e5.} Be7 {[%emt 0:05:16]} 10. e5 {[%emt 0:02:25] White is much more active.} dxe5 {[%emt 0:00:15]} 11. Nxe5 {[%emt 0:00:07] White is slightly better.} Bc6 {[%emt 0:03:04]} 12. Nxc6 {[%emt 0:02:03]} bxc6 {[%emt 0:00:05]} 13. Qc4 {[%emt 0:10:12]} Qb6 {[%emt 0:13:51]} 14. Be3 {[%emt 0:04:16]} Qb7 {[%emt 0:06:43]} 15. Bc5 {[%emt 0:05:39] Hoping for Bxe7.} O-O {[%emt 0:00:24]} 16. Bxe7 {[%emt 0:00:52]} Qxe7 {[%emt 0:00:02]} 17. Qxc6 {[%emt 0:05:04]} Rfc8 {[%emt 0:01:50]} 18. Qf3 {[%emt 0:02:25]} Rab8 {[%emt 0:02:31]} 19. a3 {[%emt 0:06:58] Against Qb4} Qc7 {[%emt 0:10:25][%cal Of6d5]} 20. Rd2 $1 {[%emt 0:01:35]} Nd7 {[%emt 0:07:29]} 21. Rhd1 $36 {[%emt 0:11:20][%mdl 2048] White fights for an advantage.} Ne5 {[%emt 0:01:13]} ({Black should play} 21... Nb6 $1 $14) 22. Qg3 $16 {[%emt 0:00:37]} h6 {[%emt 0:12:27][%cal Oc7b6]} 23. Rd4 {[%emt 0:01:57]} (23. Ne4 $1 $18 {[%cal Re4d6] Nd6 would now be deadly.} Qa5 24. Nd6) 23... a5 {[%emt 0:01:46][%cal Oc7b6]} 24. Re4 $2 {[%emt 0:09:29]} ({Better is} 24. R1d2 $1 $16) 24... f6 $2 {[%emt 0:02:22]} (24... Qb7 $1 $15 {keeps the upper hand.} 25. Qxe5 Qxb2+ 26. Kd2 Rxc3 27. Qxc3 Rd8+ 28. Ke2 Qxc3 29. Rxd8+ Kh7) 25. Rdd4 {[%emt 0:00:52]} (25. f4 $16 Nc4 26. Red4) 25... Qb7 {[%emt 0:01:02]} 26. b3 {[%emt 0:01:20]} Rc7 {[%emt 0:02:08]} (26... Rc6 $1 $14) 27. f4 {[%emt 0:01:24]} Rbc8 {[%emt 0:00:54]} 28. Re3 {[%emt 0:00:18]} (28. fxe5 $2 {is the wrong capture.} Rxc3 29. Qf2 Qxb3 $19) 28... Nd7 {[%emt 0:01:58][%cal Oa5a4]} 29. Rd2 {[%emt 0:05:41]} Nc5 {[%emt 0:03:17][%cal Oc5b3]} 30. Rde2 {[%emt 0:01:38]} (30. a4 $16) 30... Rd7 $2 {[%emt 0:02:12] [#]} (30... Nxb3+ $1 $11 31. cxb3 Qxb3) 31. Ne4 $1 {[%emt 0:02:11]} Nxe4 {[%emt 0:02:10]} 32. Rxe4 {[%emt 0:00:02]} Qd5 {[%emt 0:00:31][%cal Oc8c2] [#]} 33. Rxe6 {[%emt 0:01:48]} (33. Qe3 $1 $18) 33... Rxc2+ {[%emt 0:01:13]} 34. Kxc2 {[%emt 0:07:58]} ({White should try} 34. Rxc2 $16 {[%cal Og3g6] Strongly threatening Qg6!} Qxe6 35. Qc3) 34... Qd1+ $11 {[%emt 0:00:39] The position is equal.} 35. Kb2 {[%emt 0:00:08]} Rd2+ {[%emt 0:00:02]} 36. Rxd2 {[%emt 0:00:14]} Qxd2+ {[%emt 0:00:02]} 37. Kb1 {[%emt 0:00:29]} Qd1+ {[%emt 0:00:02]} 38. Kb2 {[%emt 0:00:12]} Qd2+ {[%emt 0:00:02]} 39. Kb1 {[%emt 0:00:07]} Qd1+ {[%emt 0:00:03]} 40. Kb2 {[%emt 0:00:07] Weighted Error Value: White=0.27 (precise) /Black=0.26 (precise) .  Mistake:       	White=6     	Black=4      Inaccurate:     	White=1     	Black=2      OK:         	White=7     	Black=9      Best:        	White=4     	Black=4      Strong:       	White=2     	---} 1/2-1/2

[Event "Reykjavik Open 2024"]
[Site "Reykjavik"]
[Date "2024.03.19"]
[Round "7.22"]
[White "Pujari, Rucha"]
[Black "Wadsworth, Matthew J"]
[Result "0-1"]
[ECO "E18"]
[WhiteElo "2147"]
[BlackElo "2450"]
[Annotator "TA"]
[PlyCount "108"]
[EventDate "2024.03.12"]
[EventCountry "ISL"]
[SourceTitle "playchess.com"]
[Source "ChessBase"]
[SourceQuality "1"]
[TimeControl "40/5400+30:1800+30"]

{[%evp 15,108,0,30,21,29,7,25,22,21,20,41,31,62,59,113,118,103,81,115,116,144,128,177,169,200,215,318,306,275,145,258,-347,-310,-356,-349,-356,-304,-365,-358,-372,-362,-338,-378,-364,-377,-397,-400,-394,-386,-385,-325,-355,-341,-332,-332,-390,-391,-389,-402,-414,-381,-404,-373,-400,-387,-746,-782,-975,-964,-980,-871,-986,-987,-918,-953,-882,-804,-917,-891,-921,-912,-875,-841,-772,-892,-902,-895,-1450,-1436,-1240,-1118,-1191,-1166,-1118,-1116]} 1. d4 {[%emt 0:06:14]} Nf6 {[%emt 0:00:34]} 2. c4 {[%emt 0:01:08]} e6 {[%emt 0:00:07]} 3. Nf3 {[%emt 0:00:24]} b6 {[%emt 0:00:08]} 4. g3 {[%emt 0:01:11]} Bb7 {[%emt 0:00:28]} 5. Bg2 {[%emt 0:00:15]} Be7 {[%emt 0:00:13]} 6. O-O {[%emt 0:00:14]} O-O {[%emt 0:00:06]} 7. Nc3 {[%emt 0:04:35]} Ne4 {[%emt 0:00:08]} 8. Bd2 {[%emt 0:00:07]} Bf6 {[%emt 0:01:38]} 9. h4 {[%emt 0:10:11]} h6 {[%emt 0:05:55]} 10. Ne5 {[%emt 0:01:56][%cal Bf3e5,Be5g4,Bg4e3][%mdl 32]} Nxc3 {[%emt 0:01:22]} 11. Bxc3 {[%emt 0:00:41] Weiß hat minimalen Vorteil.} Bxg2 {[%emt 0:00:30]} 12. Kxg2 {[%emt 0:00:06]} d6 {[%emt 0:05:38]} 13. Ng4 {[%emt 0:03:10]} Be7 {[%emt 0:00:27]} 14. e4 {[%emt 0:01:52]} f5 {[%emt 0:07:42]} (14... Nd7 $14) 15. exf5 $16 {[%emt 0:02:11]} exf5 {[%emt 0:00:09]} 16. Qf3 {[%emt 0:04:43]} c6 {[%emt 0:05:18]} 17. Ne3 {[%emt 0:08:00]} f4 {[%emt 0:06:21]} 18. gxf4 {[%emt 0:01:32]} Bxh4 {[%emt 0:11:20]} (18... d5 $16) 19. Qg4 $1 $18 {[%emt 0:06:24]} h5 {[%emt 0:15:38]} 20. Qe6+ {[%emt 0:03:40]} (20. Qxh5 $6 Rxf4 21. d5 Qg5+ 22. Qxg5 Bxg5 $16) 20... Kh7 {[%emt 0:00:45]} (20... Rf7 {war nötig.} 21. d5 Qd7) 21. Qe4+ {[%emt 0:03:21]} g6 {[%emt 0:02:43]} 22. Rh1 {[%emt 0:04:51]} ({Besser ist} 22. f5 $18 gxf5 23. Nxf5 Qg5+ 24. Ng3+ Kg8 25. Rae1) 22... Nd7 {[%emt 0:04:38]} (22... Qe7 $16 {war einen Versuch wert.} 23. Qf3 d5) 23. f5 $4 {[%emt 0:09:01][%mdl 8192] [#]} (23. Qxc6 Rxf4 24. Rxh4 Rxh4 25. Qxd6 Qg5+ 26. Qg3 Qxg3+ 27. Kxg3 Re4 $17) (23. Rh3 $18 {[%cal Oa1h1] und Weiss kann entspannen. Rah1! ist eine echte Drohung.} Qe7 24. Qxc6) 23... Qg5+ $1 $19 {[%emt 0:01:27] Ab hier gerät Weiß ins Schliddern.} 24. Kf1 {[%emt 0:09:58] [#]} Bxf2 {[%emt 0:00:38][%mdl 512]} 25. Kxf2 {[%emt 0:08:47]} Rae8 {[%emt 0:00:27]} (25... gxf5 $2 26. Qg2 (26. Qxc6 Nf6 $18) 26... Nf6 27. Qxg5 $18) 26. Qf3 {[%emt 0:01:19][%cal Oa1g1] [#]} (26. Qxc6 {wird mattgesetzt.} Qxe3+ 27. Kg2 Qg5+ 28. Kf2 Qxf5+ (28... Rxf5+ 29. Qf3 Qe3+ 30. Kg2 Qxf3+ 31. Kh2 Qf2+ 32. Kh3 Rf3#) 29. Kg3 Qf2+ 30. Kh3 Re3+) 26... Rxe3 $1 {[%emt 0:00:37][%mdl 512]} 27. Qxe3 {[%emt 0:00:45]} Rxf5+ {[%emt 0:00:08]} 28. Ke2 {[%emt 0:00:04]} Qg2+ {[%emt 0:00:21]} 29. Kd3 {[%emt 0:00:10]} Rf3 {[%emt 0:00:17]} 30. Rag1 {[%emt 0:05:14]} Qf2 {[%emt 0:00:13]} ({Finger weg von} 30... Rxe3+ 31. Kxe3 Qc2 32. Rf1 $19) 31. Qxf3 {[%emt 0:00:17]} Qxf3+ {[%emt 0:00:11]} 32. Kc2 {[%emt 0:00:05]} d5 {[%emt 0:03:02]} 33. cxd5 {[%emt 0:00:21]} cxd5 {[%emt 0:04:23]} 34. Rf1 {[%emt 0:00:07]} Qg2+ {[%emt 0:01:44]} ({Jedoch nicht} 34... Qe4+ 35. Kb3 $19) 35. Kb3 {[%emt 0:00:52] [#]} Nf6 $1 {[%emt 0:00:47][%mdl 512]} 36. Rhg1 {[%emt 0:00:23]} Qh2 {[%emt 0:00:20]} 37. Rh1 {[%emt 0:02:28]} Qd6 {[%emt 0:02:19]} 38. Bb4 {[%emt 0:00:51]} Qe6 {[%emt 0:02:01]} 39. Rc1 {[%emt 0:00:21]} Qd7 {[%emt 0:03:41] Es drohte Rc7} 40. Rh2 $2 {[%emt 0:02:07]} (40. a3) 40... a5 {[%emt 0:02:38] Schwarz steht klar auf Gewinn.} 41. Bc3 {[%emt 0:13:38]} a4+ {[%emt 0:02:50]} 42. Kc2 {[%emt 0:00:03]} Qf5+ {[%emt 0:00:36]} 43. Kd1 {[%emt 0:00:07]} Ng4 {[%emt 0:01:14]} 44. Re2 {[%emt 0:00:50]} Nf2+ {[%emt 0:00:52]} 45. Kd2 {[%emt 0:00:46]} Ne4+ {[%emt 0:03:02]} 46. Kd1 {[%emt 0:01:05]} Qf3 {[%emt 0:00:58] Droht stark ...Ng3.} 47. Be1 {[%emt 0:01:22]} Qd3+ {[%emt 0:01:27]} 48. Bd2 {[%emt 0:00:05]} h4 {[%emt 0:00:55]} 49. Rc7+ {[%emt 0:01:19]} Kg8 {[%emt 0:00:06]} 50. Rc8+ {[%emt 0:00:05]} Kf7 {[%emt 0:00:03][%cal Oh4h3]} 51. Ke1 {[%emt 0:00:20]} Qg3+ {[%emt 0:01:26]} 52. Kd1 {[%emt 0:00:12]} Qf3 {[%emt 0:00:33]} 53. Bb4 {[%emt 0:01:22]} Qd3+ {[%emt 0:01:16]} 54. Bd2 {[%emt 0:00:15]} h3 {[%emt 0:00:30] Gewichteter Fehlerwert: Weiß=0.58/Schwarz=0.16 (sehr präzise) .  Gewinn verpasst:   	Weiß=1     	---        Fehler:       	Weiß=2     	Schwarz=4     Ungenau:       	---       	Schwarz=2     OK:         	Weiß=12    	Schwarz=10    Bester:       	Weiß=3     	Schwarz=3     Stark:        	---       	Schwarz=1     Brilliant:      	---       	Schwarz=2} 0-1